[Event "*** Titled Tuesday Blitz"]
[Site "Chess.com"]
[Date "2020.12.29"]
[Round "4"]
[White "Alexandr_Kholin"]
[Black "jens1102"]
[Result "1/2-1/2"]
[WhiteElo "2543"]
[BlackElo "2380"]
[TimeControl "180+1"]
[EndTime "10:40:29 PST"]
[Termination "Game drawn - insufficient material"]

1. d4 {[%clk 0:03:00.9]} 1... Nf6 {[%clk 0:03:00.1]} 2. c4 {[%clk 0:02:58.6]}
2... e6 {[%clk 0:03:00.3]} 3. Nf3 {[%clk 0:02:57]} 3... Bb4+ {[%clk 0:03:00]} 4.
Bd2 {[%clk 0:02:55.3]} 4... c5 {[%clk 0:03:00.4]} 5. Bxb4 {[%clk 0:02:54]} 5...
cxb4 {[%clk 0:03:00.6]} 6. a3 {[%clk 0:02:53.5]} 6... bxa3 {[%clk 0:03:00.7]} 7.
Rxa3 {[%clk 0:02:53.8]} 7... O-O {[%clk 0:03:00.8]} 8. Nbd2 {[%clk 0:02:52.1]}
8... d5 {[%clk 0:03:00]} 9. c5 {[%clk 0:02:46.6]} 9... b6 {[%clk 0:02:56.6]} 10.
b4 {[%clk 0:02:45.6]} 10... bxc5 {[%clk 0:02:27.7]} 11. bxc5 {[%clk 0:02:43.2]}
11... a5 {[%clk 0:02:27.6]} 12. e3 {[%clk 0:02:42.6]} 12... Nc6 {[%clk
0:02:26.2]} 13. Bb5 {[%clk 0:02:41.7]} 13... Qc7 {[%clk 0:02:26]} 14. Bxc6
{[%clk 0:02:39.8]} 14... Qxc6 {[%clk 0:02:26.3]} 15. O-O {[%clk 0:02:39.4]}
15... Ba6 {[%clk 0:02:23.3]} 16. Re1 {[%clk 0:02:38.5]} 16... Bb5 {[%clk
0:02:23.8]} 17. Ne5 {[%clk 0:02:35.2]} 17... Qc7 {[%clk 0:02:24.2]} 18. Qa1
{[%clk 0:02:34.3]} 18... Rfb8 {[%clk 0:02:23]} 19. h3 {[%clk 0:02:31.5]} 19...
Ne4 {[%clk 0:02:08]} 20. Nxe4 {[%clk 0:02:23.1]} 20... dxe4 {[%clk 0:02:08.9]}
21. Rc1 {[%clk 0:02:21.1]} 21... Rb7 {[%clk 0:01:50]} 22. Nc4 {[%clk 0:02:03.7]}
22... Bxc4 {[%clk 0:01:46.3]} 23. Rxc4 {[%clk 0:02:03.9]} 23... Rab8 {[%clk
0:01:46.4]} 24. Rc1 {[%clk 0:02:02.3]} 24... Rb5 {[%clk 0:01:45.1]} 25. Qc3
{[%clk 0:01:49.7]} 25... h6 {[%clk 0:01:19.5]} 26. g3 {[%clk 0:01:47.5]} 26...
h5 {[%clk 0:01:07.8]} 27. h4 {[%clk 0:01:45.1]} 27... Rc8 {[%clk 0:01:07.9]} 28.
Rca1 {[%clk 0:01:42.3]} 28... Ra8 {[%clk 0:00:56.2]} 29. Rb3 {[%clk 0:01:40.7]}
29... Qc6 {[%clk 0:00:52.2]} 30. Rxb5 {[%clk 0:01:32.6]} 30... Qxb5 {[%clk
0:00:53.1]} 31. c6 {[%clk 0:01:26]} 31... Rc8 {[%clk 0:00:52.4]} 32. Rxa5 {[%clk
0:01:15.1]} 32... Rxc6 {[%clk 0:00:47.1]} 33. Rxb5 {[%clk 0:01:04.9]} 33... Rxc3
{[%clk 0:00:45.9]} 34. Rxh5 {[%clk 0:01:05.5]} 34... f5 {[%clk 0:00:46.5]} 35.
g4 {[%clk 0:01:00.3]} 35... g6 {[%clk 0:00:39.9]} 36. Rg5 {[%clk 0:00:59.8]}
36... Kf7 {[%clk 0:00:38.8]} 37. gxf5 {[%clk 0:00:53.2]} 37... gxf5 {[%clk
0:00:32.2]} 38. Kg2 {[%clk 0:00:52.3]} 38... Rc1 {[%clk 0:00:31.5]} 39. Rg3
{[%clk 0:00:49.1]} 39... Rd1 {[%clk 0:00:31.4]} 40. h5 {[%clk 0:00:48.4]} 40...
Rc1 {[%clk 0:00:24.6]} 41. h6 {[%clk 0:00:38.7]} 41... Rc8 {[%clk 0:00:24.9]}
42. Rg7+ {[%clk 0:00:31.3]} 42... Kf6 {[%clk 0:00:24]} 43. Rb7 {[%clk
0:00:24.7]} 43... Rh8 {[%clk 0:00:24.2]} 44. h7 {[%clk 0:00:24]} 44... Ra8
{[%clk 0:00:09]} 45. Kg3 {[%clk 0:00:21.9]} 45... Rh8 {[%clk 0:00:09.6]} 46. Kf4
{[%clk 0:00:13.7]} 46... Ra8 {[%clk 0:00:10.1]} 47. Rc7 {[%clk 0:00:12.2]} 47...
Rh8 {[%clk 0:00:09.7]} 48. Kg3 {[%clk 0:00:11.9]} 48... Ra8 {[%clk 0:00:09.7]}
49. Kh4 {[%clk 0:00:11.8]} 49... Kg6 {[%clk 0:00:10.2]} 50. Kg3 {[%clk
0:00:11.5]} 50... Kf6 {[%clk 0:00:09.6]} 51. Rc6 {[%clk 0:00:11.9]} 51... Rh8
{[%clk 0:00:09.3]} 52. d5 {[%clk 0:00:10.8]} 52... Rxh7 {[%clk 0:00:09.8]} 53.
Rxe6+ {[%clk 0:00:10.6]} 53... Kg5 {[%clk 0:00:09.6]} 54. d6 {[%clk 0:00:09.5]}
54... Rd7 {[%clk 0:00:09.7]} 55. f4+ {[%clk 0:00:09.4]} 55... exf3 {[%clk
0:00:09.7]} 56. Kxf3 {[%clk 0:00:09.9]} 56... Rh7 {[%clk 0:00:09.5]} 57. Re7
{[%clk 0:00:09.5]} 57... Rh3+ {[%clk 0:00:09.6]} 58. Ke2 {[%clk 0:00:09.1]}
58... Rh2+ {[%clk 0:00:09.5]} 59. Kd3 {[%clk 0:00:09.2]} 59... Kf6 {[%clk
0:00:10.2]} 60. Re8 {[%clk 0:00:07.7]} 60... Rh1 {[%clk 0:00:10.1]} 61. Ke2
{[%clk 0:00:07.4]} 61... Rh7 {[%clk 0:00:06.8]} 62. Ra8 {[%clk 0:00:03.7]} 62...
Rd7 {[%clk 0:00:04.8]} 63. Ra6 {[%clk 0:00:04.1]} 63... Ke6 {[%clk 0:00:05.3]}
64. Kf3 {[%clk 0:00:05]} 64... Rxd6 {[%clk 0:00:05.9]} 65. Rxd6+ {[%clk
0:00:05.1]} 65... Kxd6 {[%clk 0:00:06.8]} 66. Kf4 {[%clk 0:00:06]} 66... Ke6
{[%clk 0:00:07.5]} 67. e4 {[%clk 0:00:06.3]} 67... fxe4 {[%clk 0:00:08.4]} 68.
Kxe4 {[%clk 0:00:07.2]} 1/2-1/2

[Event "*** Titled Tuesday Blitz"]
[Site "Chess.com"]
[Date "2020.12.29"]
[Round "4"]
[White "Nara_Kh"]
[Black "vladgoncharov"]
[Result "0-1"]
[WhiteElo "2351"]
[BlackElo "2548"]
[TimeControl "180+1"]
[EndTime "10:40:30 PST"]
[Termination "vladgoncharov won by resignation"]

1. e4 {[%clk 0:03:00.9]} 1... e6 {[%clk 0:02:57]} 2. d4 {[%clk 0:02:59.9]} 2...
d5 {[%clk 0:02:57.6]} 3. Nd2 {[%clk 0:02:59.4]} 3... Be7 {[%clk 0:02:57.8]} 4.
Ngf3 {[%clk 0:02:58.9]} 4... Nf6 {[%clk 0:02:56]} 5. e5 {[%clk 0:02:59.1]} 5...
Nfd7 {[%clk 0:02:56.6]} 6. Bd3 {[%clk 0:02:59.3]} 6... c5 {[%clk 0:02:57.2]} 7.
c3 {[%clk 0:02:58.8]} 7... Nc6 {[%clk 0:02:57.8]} 8. O-O {[%clk 0:02:58.9]} 8...
g5 {[%clk 0:02:58]} 9. dxc5 {[%clk 0:02:56.9]} 9... g4 {[%clk 0:02:55.8]} 10.
Nd4 {[%clk 0:02:57]} 10... Ndxe5 {[%clk 0:02:48]} 11. Bb5 {[%clk 0:02:56]} 11...
Bd7 {[%clk 0:02:47.1]} 12. Re1 {[%clk 0:02:53.7]} 12... Bxc5 {[%clk 0:02:37.1]}
13. Bxc6 {[%clk 0:02:37.5]} 13... Nxc6 {[%clk 0:02:35.8]} 14. Qxg4 {[%clk
0:02:36.4]} 14... Qf6 {[%clk 0:02:26.6]} 15. N2f3 {[%clk 0:02:15.1]} 15... h5
{[%clk 0:02:13.7]} 16. Qg5 {[%clk 0:02:07]} 16... Qxg5 {[%clk 0:02:12.4]} 17.
Bxg5 {[%clk 0:02:06.2]} 17... Rg8 {[%clk 0:02:00.8]} 18. h4 {[%clk 0:01:56.7]}
18... Nxd4 {[%clk 0:01:48.8]} 19. Nxd4 {[%clk 0:01:48.8]} 19... Bxd4 {[%clk
0:01:37.8]} 20. cxd4 {[%clk 0:01:49.7]} 20... Bb5 {[%clk 0:01:36.6]} 21. Rac1
{[%clk 0:01:43.8]} 21... Kd7 {[%clk 0:01:36.4]} 22. Rc5 {[%clk 0:01:43.7]} 22...
a6 {[%clk 0:01:27]} 23. Rec1 {[%clk 0:01:35.8]} 23... Bc6 {[%clk 0:01:22.8]} 24.
Kh2 {[%clk 0:01:31.2]} 24... Rg6 {[%clk 0:01:21.6]} 25. b4 {[%clk 0:01:22.7]}
25... f6 {[%clk 0:01:20.8]} 26. Bf4 {[%clk 0:01:21]} 26... Rg4 {[%clk
0:01:20.3]} 27. g3 {[%clk 0:01:20.5]} 27... e5 {[%clk 0:01:12.6]} 28. dxe5
{[%clk 0:01:15.8]} 28... fxe5 {[%clk 0:01:12.5]} 29. Bxe5 {[%clk 0:01:15.8]}
29... Rxb4 {[%clk 0:01:11.6]} 30. f4 {[%clk 0:00:36.7]} 30... Re8 {[%clk
0:01:05.3]} 31. R1c2 {[%clk 0:00:33.2]} 31... Ra4 {[%clk 0:01:02.3]} 32. Rd2
{[%clk 0:00:32.6]} 32... Ke6 {[%clk 0:01:02]} 33. Rc1 {[%clk 0:00:30.4]} 33...
Kf5 {[%clk 0:01:01]} 34. Rf1 {[%clk 0:00:24.4]} 34... Ra3 {[%clk 0:00:52.4]} 35.
Bd6 {[%clk 0:00:18.1]} 35... Rae3 {[%clk 0:00:49]} 36. Bc5 {[%clk 0:00:16.3]}
36... R3e4 {[%clk 0:00:46.2]} 37. Bd4 {[%clk 0:00:11.1]} 37... Bb5 {[%clk
0:00:37.3]} 38. Rff2 {[%clk 0:00:11.5]} 38... Bc4 {[%clk 0:00:37.2]} 39. Rb2
{[%clk 0:00:11.1]} 39... b5 {[%clk 0:00:37]} 40. Rbd2 {[%clk 0:00:10.6]} 40...
b4 {[%clk 0:00:33.7]} 41. Be5 {[%clk 0:00:10.6]} 41... a5 {[%clk 0:00:31.5]} 42.
Bc7 {[%clk 0:00:09.7]} 42... Ra8 {[%clk 0:00:29.6]} 43. Rb2 {[%clk 0:00:08.7]}
43... d4 {[%clk 0:00:24]} 44. Be5 {[%clk 0:00:08.7]} 44... d3 {[%clk 0:00:24.1]}
45. Kg2 {[%clk 0:00:08.9]} 45... Rc8 {[%clk 0:00:18.7]} 46. Rfd2 {[%clk
0:00:09]} 46... Ba6 {[%clk 0:00:17.2]} 47. Kf2 {[%clk 0:00:09.4]} 47... a4
{[%clk 0:00:15.1]} 48. Rb1 {[%clk 0:00:08.2]} 48... Rc2 {[%clk 0:00:13.7]} 49.
Rb2 {[%clk 0:00:08.6]} 49... Rxd2+ {[%clk 0:00:09.9]} 50. Rxd2 {[%clk
0:00:08.3]} 50... Bc4 {[%clk 0:00:10]} 51. Bd6 {[%clk 0:00:07.8]} 51... b3
{[%clk 0:00:10.2]} 52. axb3 {[%clk 0:00:08.1]} 52... axb3 {[%clk 0:00:10.6]} 53.
Be5 {[%clk 0:00:08.7]} 53... Re2+ {[%clk 0:00:10.9]} 54. Rxe2 {[%clk 0:00:08.6]}
54... dxe2 {[%clk 0:00:11.8]} 55. Bd4 {[%clk 0:00:08.7]} 55... Ke4 {[%clk
0:00:12]} 56. Ba1 {[%clk 0:00:08.2]} 56... Kd3 {[%clk 0:00:11.3]} 57. Ke1 {[%clk
0:00:04.9]} 57... Kc2 {[%clk 0:00:10.4]} 58. f5 {[%clk 0:00:04.7]} 58... b2
{[%clk 0:00:10.1]} 59. Bxb2 {[%clk 0:00:04.9]} 59... Kxb2 {[%clk 0:00:11]} 60.
f6 {[%clk 0:00:05.8]} 60... Kc3 {[%clk 0:00:10.6]} 61. g4 {[%clk 0:00:03.7]}
61... hxg4 {[%clk 0:00:09.7]} 62. h5 {[%clk 0:00:04]} 62... g3 {[%clk 0:00:07]}
63. h6 {[%clk 0:00:04.9]} 63... g2 {[%clk 0:00:07.2]} 64. Kf2 {[%clk 0:00:05.3]}
64... g1=Q+ {[%clk 0:00:06.9]} 65. Kxg1 {[%clk 0:00:06.2]} 65... e1=Q+ {[%clk
0:00:07]} 66. Kg2 {[%clk 0:00:07.1]} 66... Qe4+ {[%clk 0:00:06.7]} 67. Kg3
{[%clk 0:00:07.5]} 67... Qg6+ {[%clk 0:00:07.6]} 68. Kf4 {[%clk 0:00:08]} 68...
Qxf6+ {[%clk 0:00:07.9]} 69. Kg4 {[%clk 0:00:08.9]} 69... Qxh6 {[%clk
0:00:08.6]} 70. Kf5 {[%clk 0:00:09.4]} 70... Qe6+ {[%clk 0:00:08.8]} 0-1

[Event "*** Titled Tuesday Blitz"]
[Site "Chess.com"]
[Date "2020.12.29"]
[Round "4"]
[White "Ermito2020"]
[Black "Sviridov_Valery"]
[Result "0-1"]
[WhiteElo "2638"]
[BlackElo "2862"]
[TimeControl "180+1"]
[EndTime "10:40:34 PST"]
[Termination "Sviridov_Valery won on time"]

1. e4 {[%clk 0:03:00.8]} 1... Nf6 {[%clk 0:02:59.8]} 2. e5 {[%clk 0:02:59.1]}
2... Nd5 {[%clk 0:02:59.8]} 3. d4 {[%clk 0:02:59.3]} 3... d6 {[%clk 0:03:00.2]}
4. Nf3 {[%clk 0:02:59.2]} 4... dxe5 {[%clk 0:03:00.2]} 5. Nxe5 {[%clk
0:02:58.5]} 5... c6 {[%clk 0:03:00]} 6. Be2 {[%clk 0:02:57.6]} 6... Nd7 {[%clk
0:02:58.7]} 7. Nf3 {[%clk 0:02:55.7]} 7... N7f6 {[%clk 0:02:58.9]} 8. O-O {[%clk
0:02:53.6]} 8... Bf5 {[%clk 0:02:59.3]} 9. c4 {[%clk 0:02:51.2]} 9... Nb6 {[%clk
0:02:58.7]} 10. Nc3 {[%clk 0:02:50.7]} 10... e6 {[%clk 0:02:58.9]} 11. Re1
{[%clk 0:02:48.1]} 11... h6 {[%clk 0:02:56.2]} 12. d5 {[%clk 0:02:29]} 12... Bc5
{[%clk 0:02:18.9]} 13. Nh4 {[%clk 0:02:11]} 13... Ne4 {[%clk 0:02:14.3]} 14.
Nxe4 {[%clk 0:02:02.8]} 14... Bxe4 {[%clk 0:02:15.2]} 15. Nf3 {[%clk 0:01:28.8]}
15... cxd5 {[%clk 0:02:14.9]} 16. cxd5 {[%clk 0:01:28.7]} 16... Qxd5 {[%clk
0:02:15.5]} 17. Bb5+ {[%clk 0:01:27.6]} 17... Ke7 {[%clk 0:02:15.9]} 18. Qxd5
{[%clk 0:01:23.6]} 18... Bxd5 {[%clk 0:02:16.8]} 19. Ne5 {[%clk 0:01:17.6]}
19... Rhd8 {[%clk 0:02:15.1]} 20. Bf4 {[%clk 0:01:12]} 20... f6 {[%clk
0:02:13.4]} 21. Ng4 {[%clk 0:01:00]} 21... Rac8 {[%clk 0:02:06.6]} 22. a4 {[%clk
0:00:54.9]} 22... a6 {[%clk 0:02:05.5]} 23. Bf1 {[%clk 0:00:53.9]} 23... Nc4
{[%clk 0:01:54.3]} 24. Bxc4 {[%clk 0:00:45.5]} 24... Bxc4 {[%clk 0:01:55.2]} 25.
Rac1 {[%clk 0:00:45.3]} 25... Bb3 {[%clk 0:01:49.8]} 26. a5 {[%clk 0:00:44.3]}
26... Bb4 {[%clk 0:01:46.3]} 27. Rxc8 {[%clk 0:00:42.1]} 27... Rxc8 {[%clk
0:01:46.4]} 28. Ra1 {[%clk 0:00:42.1]} 28... e5 {[%clk 0:01:43.2]} 29. Bg3
{[%clk 0:00:34.2]} 29... Bxa5 {[%clk 0:01:41.1]} 30. f4 {[%clk 0:00:31.8]} 30...
Bb6+ {[%clk 0:01:40.3]} 31. Bf2 {[%clk 0:00:29.5]} 31... Bxf2+ {[%clk
0:01:39.5]} 32. Nxf2 {[%clk 0:00:30.4]} 32... exf4 {[%clk 0:01:40]} 33. h3
{[%clk 0:00:30.1]} 33... g5 {[%clk 0:01:39.4]} 34. Re1+ {[%clk 0:00:29]} 34...
Kf7 {[%clk 0:01:39.3]} 35. Ne4 {[%clk 0:00:29]} 35... Rd8 {[%clk 0:01:38.3]} 36.
Nc5 {[%clk 0:00:27.6]} 36... Bd5 {[%clk 0:01:33.3]} 37. Rd1 {[%clk 0:00:27]}
37... Ke7 {[%clk 0:01:33.9]} 38. Re1+ {[%clk 0:00:26.5]} 38... Kd6 {[%clk
0:01:34]} 39. b4 {[%clk 0:00:27.3]} 39... Kc6 {[%clk 0:01:21]} 40. Rc1 {[%clk
0:00:25.2]} 40... Kb5 {[%clk 0:01:21]} 41. Rd1 {[%clk 0:00:24.2]} 41... b6
{[%clk 0:01:18.6]} 42. Ne6 {[%clk 0:00:20.2]} 42... Rd7 {[%clk 0:01:12.7]} 43.
Nf8 {[%clk 0:00:19.2]} 43... Rd6 {[%clk 0:01:10.9]} 44. Rd4 {[%clk 0:00:18]}
44... a5 {[%clk 0:01:09.4]} 45. bxa5 {[%clk 0:00:17.6]} 45... bxa5 {[%clk
0:01:10.3]} 46. Ng6 {[%clk 0:00:18.5]} 46... a4 {[%clk 0:01:08.6]} 47. Ne7
{[%clk 0:00:18]} 47... a3 {[%clk 0:00:55.1]} 48. Nxd5 {[%clk 0:00:13.6]} 48...
Kc5 {[%clk 0:00:44.4]} 49. Ra4 {[%clk 0:00:11.6]} 49... Rxd5 {[%clk 0:00:42.8]}
50. Rxa3 {[%clk 0:00:11.5]} 50... Kd6 {[%clk 0:00:42.7]} 51. Ra6+ {[%clk
0:00:10.5]} 51... Ke5 {[%clk 0:00:42.8]} 52. Ra8 {[%clk 0:00:10.4]} 52... Kf5
{[%clk 0:00:43.1]} 53. Rh8 {[%clk 0:00:09.8]} 53... Kg6 {[%clk 0:00:43.1]} 54.
Rg8+ {[%clk 0:00:09.6]} 54... Kf7 {[%clk 0:00:43.5]} 55. Rh8 {[%clk 0:00:09.2]}
55... Kg7 {[%clk 0:00:43.3]} 56. Ra8 {[%clk 0:00:09.6]} 56... Rd3 {[%clk
0:00:43.8]} 57. Ra7+ {[%clk 0:00:08.9]} 57... Kg6 {[%clk 0:00:44.2]} 58. Kf2
{[%clk 0:00:09]} 58... Rb3 {[%clk 0:00:43.8]} 59. Ra6 {[%clk 0:00:07.6]} 59...
Rb2+ {[%clk 0:00:43.5]} 60. Kf3 {[%clk 0:00:07.2]} 60... h5 {[%clk 0:00:43.4]}
61. Ra5 {[%clk 0:00:06.7]} 61... Rb3+ {[%clk 0:00:42.8]} 62. Kf2 {[%clk
0:00:05.1]} 62... g4 {[%clk 0:00:43.1]} 63. hxg4 {[%clk 0:00:04.9]} 63... hxg4
{[%clk 0:00:44]} 64. Ra4 {[%clk 0:00:05.7]} 64... Kg5 {[%clk 0:00:43.7]} 65.
Ra5+ {[%clk 0:00:05.3]} 65... f5 {[%clk 0:00:44]} 66. Ra8 {[%clk 0:00:05.7]}
66... f3 {[%clk 0:00:44.4]} 67. g3 {[%clk 0:00:04.5]} 67... Rb2+ {[%clk
0:00:44]} 68. Kf1 {[%clk 0:00:04.5]} 68... Rg2 {[%clk 0:00:44.3]} 69. Rg8+
{[%clk 0:00:04.3]} 69... Kf6 {[%clk 0:00:44.8]} 70. Rf8+ {[%clk 0:00:04.4]}
70... Kg6 {[%clk 0:00:45.2]} 71. Rg8+ {[%clk 0:00:03.2]} 71... Kf7 {[%clk
0:00:45.6]} 72. Rg5 {[%clk 0:00:02]} 72... Kf6 {[%clk 0:00:45.8]} 73. Rg8 {[%clk
0:00:02.5]} 73... Rxg3 {[%clk 0:00:46.2]} 74. Kf2 {[%clk 0:00:02.2]} 74... Rg2+
{[%clk 0:00:46.3]} 75. Kf1 {[%clk 0:00:02.6]} 75... Rb2 {[%clk 0:00:45.9]} 76.
Ra8 {[%clk 0:00:01.9]} 76... Kg5 {[%clk 0:00:45.9]} 77. Rb8 {[%clk 0:00:01.5]}
77... Rxb8 {[%clk 0:00:44.8]} 0-1

[Event "*** Titled Tuesday Blitz"]
[Site "Chess.com"]
[Date "2020.12.29"]
[Round "4"]
[White "Heineccius"]
[Black "vrekhson"]
[Result "1/2-1/2"]
[WhiteElo "2584"]
[BlackElo "2242"]
[TimeControl "180+1"]
[EndTime "10:40:35 PST"]
[Termination "Game drawn - insufficient material"]

1. d4 {[%clk 0:03:00.9]} 1... Nf6 {[%clk 0:02:59.5]} 2. c4 {[%clk 0:03:01.1]}
2... c5 {[%clk 0:02:58.7]} 3. d5 {[%clk 0:03:00.4]} 3... b5 {[%clk 0:02:58.5]}
4. cxb5 {[%clk 0:03:00.8]} 4... a6 {[%clk 0:02:58.9]} 5. bxa6 {[%clk 0:03:01.7]}
5... g6 {[%clk 0:02:57.9]} 6. Nc3 {[%clk 0:03:02]} 6... Bxa6 {[%clk 0:02:58.1]}
7. g3 {[%clk 0:03:02.4]} 7... d6 {[%clk 0:02:58]} 8. Bg2 {[%clk 0:03:02.7]} 8...
Bg7 {[%clk 0:02:58]} 9. Nf3 {[%clk 0:03:03]} 9... O-O {[%clk 0:02:58.4]} 10. O-O
{[%clk 0:03:03.3]} 10... Nbd7 {[%clk 0:02:58.3]} 11. Rb1 {[%clk 0:03:02.3]}
11... Ng4 {[%clk 0:02:57.5]} 12. Bd2 {[%clk 0:02:55.5]} 12... Nge5 {[%clk
0:02:57]} 13. Nxe5 {[%clk 0:02:55.4]} 13... Nxe5 {[%clk 0:02:57.9]} 14. b3
{[%clk 0:02:55.9]} 14... Ra7 {[%clk 0:02:35.2]} 15. Qc2 {[%clk 0:02:51.3]} 15...
Qa8 {[%clk 0:02:31.1]} 16. a4 {[%clk 0:02:47.1]} 16... Rb8 {[%clk 0:02:27]} 17.
Rfd1 {[%clk 0:02:35.2]} 17... h5 {[%clk 0:02:11.6]} 18. h3 {[%clk 0:02:30]}
18... Qb7 {[%clk 0:01:56.9]} 19. Be1 {[%clk 0:02:23.2]} 19... Qd7 {[%clk
0:01:56.3]} 20. Ne4 {[%clk 0:01:55.4]} 20... Qc8 {[%clk 0:01:52]} 21. Bc3 {[%clk
0:01:51.4]} 21... h4 {[%clk 0:01:48.1]} 22. gxh4 {[%clk 0:01:42.6]} 22... Bb7
{[%clk 0:01:39.1]} 23. f4 {[%clk 0:01:36.7]} 23... Nd7 {[%clk 0:01:36.8]} 24. h5
{[%clk 0:01:30.9]} 24... Nb6 {[%clk 0:01:24.2]} 25. Bxg7 {[%clk 0:01:08]} 25...
Kxg7 {[%clk 0:01:25.1]} 26. hxg6 {[%clk 0:01:01.6]} 26... Nxd5 {[%clk
0:01:08.8]} 27. Nxd6 {[%clk 0:00:42.3]} 27... exd6 {[%clk 0:00:41]} 28. Bxd5
{[%clk 0:00:41.5]} 28... Qxh3 {[%clk 0:00:40.7]} 29. Qe4 {[%clk 0:00:19.8]}
29... Bxd5 {[%clk 0:00:13.9]} 30. Rxd5 {[%clk 0:00:20.7]} 30... Qg3+ {[%clk
0:00:11.7]} 31. Qg2 {[%clk 0:00:21]} 31... Qe3+ {[%clk 0:00:11.8]} 32. Qf2
{[%clk 0:00:19.3]} 32... Rxb3 {[%clk 0:00:11]} 33. Qxe3 {[%clk 0:00:18.1]} 33...
Rxe3 {[%clk 0:00:11.9]} 34. gxf7 {[%clk 0:00:16.7]} 34... Rxa4 {[%clk
0:00:10.4]} 35. Rxd6 {[%clk 0:00:16]} 35... Rxf4 {[%clk 0:00:10]} 36. Rf1 {[%clk
0:00:15.7]} 36... Rxf1+ {[%clk 0:00:09.3]} 37. Kxf1 {[%clk 0:00:15.1]} 37...
Kxf7 {[%clk 0:00:08.7]} 38. Rc6 {[%clk 0:00:15.6]} 38... Rc3 {[%clk 0:00:07.8]}
39. Kf2 {[%clk 0:00:15.8]} 39... Ke7 {[%clk 0:00:07.4]} 40. e3 {[%clk
0:00:16.1]} 40... Kd7 {[%clk 0:00:07.5]} 41. Ra6 {[%clk 0:00:16.4]} 41... Rc4
{[%clk 0:00:06.5]} 42. Ke2 {[%clk 0:00:16.3]} 42... Rb4 {[%clk 0:00:06]} 43. Kd3
{[%clk 0:00:16.6]} 43... Rb3+ {[%clk 0:00:05.7]} 44. Ke4 {[%clk 0:00:17]} 44...
c4 {[%clk 0:00:05.1]} 45. Ra4 {[%clk 0:00:17.4]} 45... c3 {[%clk 0:00:04.6]} 46.
Rc4 {[%clk 0:00:17.9]} 46... Ra3 {[%clk 0:00:03.1]} 47. Kd4 {[%clk 0:00:17.8]}
47... c2 {[%clk 0:00:02.9]} 48. Rxc2 {[%clk 0:00:18]} 48... Ra4+ {[%clk
0:00:02.7]} 49. Rc4 {[%clk 0:00:18.2]} 49... Ra3 {[%clk 0:00:02.4]} 50. Ke4
{[%clk 0:00:17.4]} 50... Ke7 {[%clk 0:00:02.3]} 51. Rb4 {[%clk 0:00:17.8]} 51...
Ra7 {[%clk 0:00:02.4]} 52. Rb6 {[%clk 0:00:17.9]} 52... Ra5 {[%clk 0:00:02.5]}
53. Kf4 {[%clk 0:00:17.7]} 53... Ra4+ {[%clk 0:00:02.7]} 54. Kf5 {[%clk
0:00:17]} 54... Ra5+ {[%clk 0:00:02.9]} 55. Ke4 {[%clk 0:00:17]} 55... Ra4+
{[%clk 0:00:03.4]} 56. Kd5 {[%clk 0:00:17.2]} 56... Ra5+ {[%clk 0:00:03.5]} 57.
Kd4 {[%clk 0:00:17.5]} 57... Ra4+ {[%clk 0:00:03.9]} 58. Kc5 {[%clk 0:00:17.8]}
58... Re4 {[%clk 0:00:03.6]} 59. Rb3 {[%clk 0:00:18.1]} 59... Re5+ {[%clk
0:00:03.3]} 60. Kd4 {[%clk 0:00:17.4]} 60... Ra5 {[%clk 0:00:03.8]} 61. e4
{[%clk 0:00:16.9]} 61... Ra4+ {[%clk 0:00:03.7]} 62. Ke5 {[%clk 0:00:14.2]}
62... Ra5+ {[%clk 0:00:04]} 63. Kf4 {[%clk 0:00:14.3]} 63... Ra6 {[%clk
0:00:04.4]} 64. Rb8 {[%clk 0:00:13.3]} 64... Rh6 {[%clk 0:00:03.4]} 65. Rg8
{[%clk 0:00:12.9]} 65... Ra6 {[%clk 0:00:03.2]} 66. Kf5 {[%clk 0:00:13]} 66...
Ra5+ {[%clk 0:00:02.7]} 67. e5 {[%clk 0:00:13.2]} 67... Ra6 {[%clk 0:00:03.3]}
68. Rg7+ {[%clk 0:00:13.3]} 68... Ke8 {[%clk 0:00:03.7]} 69. Rb7 {[%clk
0:00:12.7]} 69... Rc6 {[%clk 0:00:03.4]} 70. Rb8+ {[%clk 0:00:11.3]} 70... Ke7
{[%clk 0:00:03.3]} 71. Rg8 {[%clk 0:00:11.7]} 71... Ra6 {[%clk 0:00:02.9]} 72.
Rg4 {[%clk 0:00:11.1]} 72... Rb6 {[%clk 0:00:02.5]} 73. Rg7+ {[%clk 0:00:11.3]}
73... Ke8 {[%clk 0:00:02.8]} 74. e6 {[%clk 0:00:10.4]} 74... Rb1 {[%clk
0:00:02.9]} 75. Rg4 {[%clk 0:00:10.2]} 75... Rf1+ {[%clk 0:00:02.8]} 76. Ke5
{[%clk 0:00:10.7]} 76... Re1+ {[%clk 0:00:03]} 77. Kf6 {[%clk 0:00:11.3]} 77...
Rf1+ {[%clk 0:00:03.1]} 78. Kg6 {[%clk 0:00:11.9]} 78... Ke7 {[%clk 0:00:03]}
79. Re4 {[%clk 0:00:11.4]} 79... Rf6+ {[%clk 0:00:02.5]} 80. Kg5 {[%clk
0:00:11.8]} 80... Rxe6 {[%clk 0:00:03.4]} 81. Rxe6+ {[%clk 0:00:11.6]} 81...
Kxe6 {[%clk 0:00:04.3]} 1/2-1/2